Cogmind - Beta 15 @@@ ROGUE MODE // 2025.10.04 @ 18:26:17 Player: beans Result: Destroyed by G-47 Trooper with Particle Gun Performance ------------- Evolutions (3) 1500 Regions Visited (4) 800 Robots Destroyed (38) 190 Value Destroyed (1399) 1399 Prototype IDs (2) 40 Alien Tech Used (0) 0 Bonus (0) 0 TOTAL SCORE: 3929 Bonus ------- None Cogmind --------- Core Integrity 0/700 Matter 163/300 Energy 23/100 System Corruption 0% Temperature Cool (14) Movement Core (150) Ox2 Location -7/Factory Parts ------- > --- POWER (1) -------- (None) > --- PROPULSION (4) --- (None) > --- UTILITY (6) ------ Targeting Computer Targeting Computer Targeting Computer Hacking Suite Hacking Suite Hacking Suite > --- WEAPON (2) ------- Heavy Ion Cannon > --- INVENTORY (5) ---- Light Nuclear Core Enhanced Nuclear Core Thermal Generator Lightning Gun Peak State ------------ > --- POWER ------------ (None) > --- PROPULSION ------- Aluminum Leg Improved Carbon-fiber Leg > --- UTILITY ---------- Targeting Computer Targeting Computer Targeting Computer Hacking Suite Hacking Suite Hacking Suite > --- WEAPON ----------- Advanced Beam Rifle Flak Gun > --- INVENTORY -------- Light Nuclear Core Flight Unit Thermal Generator Hacking Suite Rocket Launcher [Rating: 26] Favorites ----------- Power Ion Engine Engine Ion Engine Power Core Enhanced Nuclear Core Propulsion Aluminum Leg Treads Light Treads Leg Aluminum Leg Flight Unit Flight Unit Utility Targeting Computer Processor Targeting Computer Hackware Hacking Suite Weapon Improved Light Cannon Energy Gun Small Laser Energy Cannon Plasma Cannon Ballistic Gun Light Assault Rifle Ballistic Cannon Improved Light Cannon Launcher Rocket Launcher Build | -11 -10 -9 -8 -7 ------- Run | Yrd Mat Mat Mat Fac Slots Evolved 6 | . . 2 2 2 Power . | . . . . . Propulsion 2 | . . . . 2 Utility 4 | . . 2 2 . Weapon . | . . . . . Parts Attached 32 | 4 9 3 5 11 Power 3 | 1 . . 1 1 Engine 2 | 1 . . 1 . Core 1 | . . . . 1 Reactor . | . . . . . Propulsion 8 | 2 2 . 2 2 Treads 2 | 2 . . . . Leg 5 | . 2 . 2 1 Wheel . | . . . . . Hover . | . . . . . Flight 1 | . . . . 1 Utility 8 | . 2 3 2 1 Device . | . . . . . Storage . | . . . . . Processor 4 | . 2 2 . . Hackware 4 | . . 1 2 1 Protection . | . . . . . Artifact . | . . . . . Weapon 13 | 1 5 . . 7 Energy Gun 3 | 1 . . . 2 Energy Cannon 2 | . . . . 2 Ballistic Gun 3 | . 2 . . 1 Ballistic Cannon 3 | . 2 . . 1 Launcher 2 | . 1 . . 1 Special Weapon . | . . . . . Impact Weapon . | . . . . . Slashing Weapon . | . . . . . Piercing Weapon . | . . . . . Special Melee Weapon . | . . . . . Unidentified Prototypes 2 | . . . . 2 Parts Lost 21 | . 5 1 5 10 Power 2 | . 1 . 1 . Propulsion 8 | . 2 . 2 4 Utility 2 | . . 1 . 1 Weapon 9 | . 2 . 2 5 Highest Loss Streak 5 | . 3 1 5 5 To Critical Strikes . | . . . . . Average Backups 3 | . 1 3 3 4 Power . | . . . . 1 Propulsion . | . . 1 1 . Utility 1 | . . 1 2 1 Weapon . | . . 1 . . Tool/Special . | . . . . . Unused Backups 4 | . . 1 . 3 Power 1 | . . . . 1 Propulsion . | . . . . . Utility 2 | . . 1 . 1 Weapon 1 | . . . . 1 Tool/Special . | . . . . . Average Slot Usage (%) 73 | . 70 83 93 62 Engine 4 | . 11 . 7 . Treads 6 | . 23 . . . Leg 10 | . 3 22 15 8 Processor 21 | . 10 35 27 23 Hackware 14 | . . 4 26 19 Energy Gun 2 | . 4 . . 2 Ballistic Gun 3 | . 12 . . 1 Ballistic Cannon 6 | . 1 22 16 . Peak Build Rating 26 | 4 8 13 19 26 Average Rating 14 | 2 5 11 18 19 On Entrance 8 | . 4 8 13 15 Naked Turns . | . . . . . Heaviest Build 13 | 6 8 8 13 12 Greatest Support 40 | 40 40 20 20 38 Greatest Overweight (x) 2 | 1 . . 2 2 Average Overweight (x) . | . . . . . Largest Inventory Capacity 5 | 5 5 5 5 5 Average Capacity 5 | 5 5 5 5 5 Most Carried 5 | 2 5 5 5 5 Average Carried 3 | . 1 3 3 4 Final Capacity 5 | 5 5 5 5 5 Final Carried 5 | . 5 5 5 4 Class Distribution -------------------- 61% | Hacker-Mutant 38% | Mutant Dominant Class ---------------- Mutant | -10/Materials Mutant | -9/Materials Hacker-Mutant | -8/Materials Hacker-Mutant | -7/Factory Resources | -11 -10 -9 -8 -7 ----------- Run | Yrd Mat Mat Mat Fac Matter Collected 887 | 152 245 105 216 169 Remotely . | . . . . . Salvage Created 1171 | . 379 84 346 362 Parts 50 | . 14 10 13 13 Haulers Intercepted 1 | . 1 . . . Recyclers Shooed 1 | . . . . 1 Parts Field Recycled . | . . . . . Retrieved Matter . | . . . . . Parts Self-Destructed . | . . . . . Prevented . | . . . . . Kills | -11 -10 -9 -8 -7 ------- Run | Yrd Mat Mat Mat Fac Combat Hostiles Destroyed 32 | . 11 2 9 10 Guns 9 | . 7 . . 2 Cannons 13 | . . 2 9 2 AOE 10 | . 4 . . 6 Classes Destroyed 9 | . 3 2 1 3 Worker 1 | . . . . 1 Builder 1 | . . 1 . . Tunneler 1 | . . . . 1 Hauler 1 | . 1 . . . Recycler 1 | . . . . 1 Operator 1 | . . . 1 . Swarmer 3 | . 3 . . . Grunt 22 | . 8 . 6 8 Sentry 7 | . . 2 3 2 Best Kill Streak 7 | . 7 1 4 5 Combat Bots Only 7 | . 7 1 4 5 Max Kills in Single Turn 3 | . 1 1 1 3 Gunslinging . | . . . . . Exploded 3 | . 1 . . 3 Melee . | . . . . . Uniques/NPCs Destroyed . | . . . . . Combat | -11 -10 -9 -8 -7 -------- Run | Yrd Mat Mat Mat Fac Hostile Shots Fired 285 | . 60 8 55 162 Missed 100 | . 12 3 13 72 Hits 185 | . 48 5 42 90 Melee 2 | . . . . 2 Projectile 183 | . 48 5 42 88 AOE 1 | . . . . 1 Critical Strikes 5 | . 1 1 2 1 Damage Taken 2903 | . 601 70 639 1593 Core 979 | . 98 13 152 716 Absorbed by Shields . | . . . . . Core Remaining (%) 82 | 100 60 96 72 . Volleys Fired 124 | . 46 6 26 46 Largest 2 | . 2 2 2 2 Hottest 108 | . 66 66 66 108 Shots Fired 168 | . 63 12 46 47 Gun 63 | . 50 . . 13 Cannon 86 | . 4 12 46 24 Launcher 19 | . 9 . . 10 Special . | . . . . . Kinetic 109 | . 34 12 46 17 Thermal 40 | . 20 . . 20 Explosive 19 | . 9 . . 10 Electromagnetic . | . . . . . Robot Hit Streak 20 | . 20 7 13 13 Robot Miss Streak 2 | . 2 1 2 2 Penetration Max . | . . . . . Secondary Targets 2 | . 2 . . . Max Gunslinging Chain 1 | . 1 . . . Shots Hit Robots 118 | . 42 8 33 35 Core Hits 75 | . 25 3 18 29 Critical Kills . | . . . . . Critical Parts Destroyed 1 | . 1 . . . Critical Strikes 4 | . 1 . 1 2 Destroy 1 | . 1 . . . Blast 3 | . . . 1 2 Melee Attacks . | . . . . . Impact . | . . . . . Slashing . | . . . . . Piercing . | . . . . . Sneak Attacks . | . . . . . Combat Hostiles . | . . . . . Follow-up Attacks . | . . . . . Damage Inflicted 3486 | . 737 170 731 1848 Guns 578 | . 331 . . 247 Cannons 1524 | . 44 170 731 579 Explosions 1384 | . 362 . . 1022 Melee . | . . . . . Ramming . | . . . . . Kinetic 1499 | . 244 170 731 354 Thermal 603 | . 131 . . 472 Explosive 1384 | . 362 . . 1022 Electromagnetic . | . . . . . Impact . | . . . . . Slashing . | . . . . . Piercing . | . . . . . Highest Corruption . | . . . . . Average Corruption . | . . . . . Corruption Purged . | . . . . . Corruption Blocked . | . . . . . Overload Shots . | . . . . . Overflow Damage 30 | . 4 . . 26 Projectiles 29 | . 4 . . 25 Explosions 1 | . . . . 1 Melee . | . . . . . Knockbacks 7 | . . . 5 2 Impact . | . . . . . Kinetic 6 | . . . 4 2 Secondary 1 | . . . 1 . Self-Inflicted Damage 43 | . 43 . . . Shots 2 | . 2 . . . Rammed . | . . . . . Targets Rammed . | . . . . . Kicked . | . . . . . Crushed . | . . . . . Highest Temperature 117 | . 117 3 59 59 Average Temperature 25 | . 42 2 15 11 Received Heat Transfer 1080 | . 297 36 306 441 Siege Activations . | . . . . . Martial Activations . | . . . . . Shielding Activations . | . . . . . Robots Disrupted . | . . . . . Combat Hostiles . | . . . . . Robots Corrupted . | . . . . . Combat Hostiles . | . . . . . Parts Fried . | . . . . . Impact Corruptions . | . . . . . Robots Melted . | . . . . . Combat Hostiles . | . . . . . Parts Melted 2 | . . . . 2 Heat Transferred 1042 | . 300 . . 742 Parts Sabotaged . | . . . . . Parts Stolen . | . . . . . Parts Stripped . | . . . . . Power Chain Reactions . | . . . . . Alert | -11 -10 -9 -8 -7 ------- Run | Yrd Mat Mat Mat Fac Maximum Alert Level 1 | . 1 . . 1 Low Security (%) 84 | 100 63 100 100 84 Level 1 15 | . 36 . . 15 Level 2 . | . . . . . Level 3 . | . . . . . Level 4 . | . . . . . Level 5 . | . . . . . High Security . | . . . . . Max Security . | . . . . . Peak Influence 252 | . 252 94 141 234 Initial 74 | . . 74 22 45 Average 91 | . 144 65 36 102 Influence Increases 1176 | . 392 80 254 450 Destroy 0b10 Robot/C 640 | . 220 40 180 200 Destroy 0b10 Robot/NC 30 | . 5 5 5 15 Destroy Leader 172 | . 52 20 50 50 Select Force Hacks 20 | . . . . 20 Disable Machine 60 | . 30 15 15 . Destroy Structure 59 | . 40 . 4 15 Lose Combat Pursuer 195 | . 45 . . 150 Influence Decreases 1032 | . 214 204 207 407 Entered New Map 192 | . . 104 32 56 Time Decay 640 | . 164 90 125 261 Lost Part 200 | . 50 10 50 90 Squads Dispatched 13 | . 2 . 6 5 Investigation 5 | . 1 . 2 2 Extermination 1 | . . . . 1 Reinforcement 7 | . 1 . 4 2 Assault . | . . . . . Garrison . | . . . . . Intercept . | . . . . . Searches Triggered . | . . . . . Construction Impeded . | . . . . . Haulers Reinforced . | . . . . . Active Scanning Responses . | . . . . . Cargo Convoy Interrupts . | . . . . . Stealth | -11 -10 -9 -8 -7 --------- Run | Yrd Mat Mat Mat Fac Distress Signals 4 | . 2 . 2 . Communications Jammed . | . . . . . Distress Signals . | . . . . . Times Spotted 59 | . 18 3 12 26 Peak Tracking Total 12 | . 4 2 5 12 Tactical Retreats 6 | . 2 . . 4 Traps | -11 -10 -9 -8 -7 ------- Run | Yrd Mat Mat Mat Fac Traps Triggered 3 | . 1 . 1 1 Indirectly . | . . . . . Trap Hack Attempts . | . . . . . Triggered . | . . . . . Disarmed . | . . . . . Reprogrammed . | . . . . . Reused . | . . . . . Traps Extracted . | . . . . . Installed . | . . . . . Triggered . | . . . . . Machines | -11 -10 -9 -8 -7 ---------- Run | Yrd Mat Mat Mat Fac Machines Disabled 4 | . 2 1 1 . Max in Single Turn 1 | . 1 1 1 . Machines Repaired . | . . . . . Machines Dismantled . | . . . . . Machines Sabotaged . | . . . . . Overloaded Fab Kills . | . . . . . Hacking | -11 -10 -9 -8 -7 --------- Run | Yrd Mat Mat Mat Fac Machines Accessed 4 | . . . . 4 Terminals 2 | . . . . 2 Fabricators 1 | . . . . 1 Repair Stations . | . . . . . Recycling Units 1 | . . . . 1 Scanalyzers . | . . . . . Garrison Access . | . . . . . Total Hacks 8 | . . . . 8 Successful 6 | . . . . 6 Failed 2 | . . . . 2 Catastrophic 1 | . . . . 1 Database Lockouts . | . . . . . Manual 8 | . . . . 8 Terminals 2 | . . . . 2 Fabricators 3 | . . . . 3 Repair Stations . | . . . . . Recycling Units 3 | . . . . 3 Scanalyzers . | . . . . . Garrison Access . | . . . . . Terminal Hacks 1 | . . . . 1 Open DSF 1 | . . . . 1 Fabricator Hacks 1 | . . . . 1 Network Status 1 | . . . . 1 Repair Station Hacks . | . . . . . Recycling Unit Hacks . | . . . . . Scanalyzer . | . . . . . Garrison Access Hacks . | . . . . . Unauthorized Hacks 1 | . . . . 1 Terminals . | . . . . . Fabricators 1 | . . . . 1 Download 1 | . . . . 1 Repair Stations . | . . . . . Recycling Units . | . . . . . Scanalyzers . | . . . . . Garrison Access . | . . . . . Data Cores Recovered . | . . . . . Used . | . . . . . Hacking Detections 3 | . . . . 3 Full Trace Events 1 | . . . . 1 Feedback Events . | . . . . . Feedback Blocked . | . . . . . Robot Schematics Acquired . | . . . . . Robots Built . | . . . . . Authchips . | . . . . . Time . | . . . . . Total Robot Build Rating . | . . . . . Part Schematics Acquired . | . . . . . Parts Built . | . . . . . Authchips . | . . . . . Time . | . . . . . Total Part Build Rating . | . . . . . Parts Repaired . | . . . . . Time . | . . . . . Parts Recycled . | . . . . . Recycled Matter . | . . . . . Retrieved Matter . | . . . . . Retrieved Components . | . . . . . Parts Scanalyzed . | . . . . . Part Schematics Acquired . | . . . . . Parts Damaged . | . . . . . Bothacking | -11 -10 -9 -8 -7 ------------ Run | Yrd Mat Mat Mat Fac Used RIF Installer . | . . . . . Robots Hacked . | . . . . . Non-combat . | . . . . . Combat . | . . . . . Robot Hacks Applied . | . . . . . Relay Couplers Released . | . . . . . Fabnet Peak Effective % . | . . . . . Robots Rewired . | . . . . . Allies Hacked . | . . . . . Hacks Repelled . | . . . . . Allies | -11 -10 -9 -8 -7 -------- Run | Yrd Mat Mat Mat Fac Total Allies . | . . . . . Largest Group . | . . . . . Highest-Rated Group . | . . . . . Highest-Rated Ally . | . . . . . Total Orders . | . . . . . Ally Attacks . | . . . . . Total Damage . | . . . . . Kills . | . . . . . Allies Corrupted . | . . . . . Allies Melted . | . . . . . Intel | -11 -10 -9 -8 -7 ------- Run | Yrd Mat Mat Mat Fac Active Infowar (turns) . | . . . . . Robot Analysis Total . | . . . . . Derelict Logs Recovered . | . . . . . Drone Launches . | . . . . . Drone Recoveries . | . . . . . Exploration | -11 -10 -9 -8 -7 ------------- Run | Yrd Mat Mat Mat Fac Turns Passed 1785 | 62 447 186 367 723 Spaces Moved 1146 | 57 209 132 211 537 Core 311 | 39 8 . 17 247 Treads 185 | 18 167 . . . Legs 612 | . 34 132 194 252 Wheels . | . . . . . Hover . | . . . . . Flight 38 | . . . . 38 Fastest Speed 50 | 50 50 120 100 50 Average Speed 119 | 97 149 120 121 109 Slowest Speed 200 | 160 160 120 150 200 Overloaded Moves . | . . . . . Propulsion Burnouts . | . . . . . Robots Hopped . | . . . . . Potential Cave-ins . | . . . . . Cave-ins Triggered . | . . . . . Exploration Rate (%) 19 | 4 38 18 24 15 Regions Visited 4 Branch Regions . Pre-discovered Areas . | . . . . . Known Exits Taken . | . . . . . Unknown Exits Taken 4 | 1 1 1 1 . Scrap Searched . | . . . . . Spaces Dug . | . . . . . Terrain Destroyed 65 | . 49 . . 16 Melee . | . . . . . Projectile . | . . . . . AOE 65 | . 49 . . 16 Terrain Rammed . | . . . . . Walls Destroyed . | . . . . . Machines Disabled . | . . . . . Actions | -11 -10 -9 -8 -7 --------- Run | Yrd Mat Mat Mat Fac Total 1395 | 64 286 149 275 621 Wait 63 | . 11 . 31 21 Move 1142 | 56 208 131 210 537 Hop . | . . . . . Pick Up 29 | 4 12 6 3 4 Fast Attach 7 | . . . 2 5 Attach 23 | 4 7 3 3 6 Detach 1 | . . . . 1 Swap 2 | . 2 . . . Drop 4 | . . 3 . 1 Fire 124 | . 46 6 26 46 Melee . | . . . . . Ram . | . . . . . Kick . | . . . . . Crush . | . . . . . Escape Stasis . | . . . . . Rewire . | . . . . . Trap . | . . . . . Miscellaneous . | . . . . . Route ------- -11/Scrapyard -10/Materials -9/Materials -8/Materials -7/Factory History --------- Turn | Location | Event 2 | -11/Scrapyard | Met Revision 17 6 | -11/Scrapyard | Discovered new exit (range 16) 63 | -11/Scrapyard | Entered Materials 239 | -10/Materials | Destroyed 7 combat bots 305 | -10/Materials | Build established: Mutant 393 | -10/Materials | Discovered new exit (range 15) 477 | -10/Materials | Lost 3 parts (1p2n) 510 | -10/Materials | Entered another Materials area 510 | -9/Materials | Evolved 2 slots: Utility x2 694 | -9/Materials | Discovered new exit (range 3) 696 | -9/Materials | Entered another Materials area 696 | -8/Materials | Evolved 2 slots: Utility x2 988 | -8/Materials | Build established: Hacker-Mutant 992 | -8/Materials | Discovered new exit (range 16) 1063 | -8/Materials | Entered Factory 1063 | -7/Factory | Evolved 2 slots: Propulsion x2 1089 | -7/Factory | Lost 5 parts (1p2n2w) 1434 | -7/Factory | Lost 5 parts (2n1u2w) 1513 | -7/Factory | Core integrity fell below 50% 1649 | -7/Factory | Core integrity fell below 20% 1786 | -7/Factory | Destroyed by G-47 Trooper with Particle Gun Last Messages --------------- K-01 Serf collects debris. Acquired 18 matter. K-01 Serf collects debris. Acquired 1 matter. K-01 Serf collects debris. Acquired 3 matter. ALERT: Potential suspicious activity detected, Programmers report to Factory Zone 5F. Triggered Heavy Explosive Trap. An explosion rips through the floor. The unstable cave ceiling collapses. Connecting with Terminal... Acquired Lightning Gun. Gatling Laser destroyed. O-24 Administrator: "IFF HANDSHAKE FAILED. SECURING TERMINAL." ALERT: Hostiles spotted, dispatching reinforcements to Terminal F012. Acquired Hvy. Ion Cannon. Destroyed Shock Rifle. Map ----- +----------------------------------------------------+ | ?????????????????????????????????????????????????? | | ?????????????????????????????????????????????????? | | ?????????????????????????????????????????????????? | | ?????????????????????????????????????????????????? | | ?????????????????????????????????????????????????? | | ?????????????????????????????????????????????????? | | ?????????????????????????????????????????????????? | | ?????????????????????????????????????????????????? | | ?????????????????????????????????????????????????? | | ?????????????????????????????????????????????????? | | ?????????????????????????????????????????????????? | | ?????????????????????????????????????????????????? | | ?????????????????????????????????????????????????? | | ?????????????????????????????????????????????????? | | ?????????????????????????????????????????????????? | | ?????????????????????????????????????????????????? | | ?????????????????????????????????????????????????? | | ?????????????????????????????????????????????????? | | ??????#####??????????????????????????????????????? | | ??????# ?##############??????????????????????? | | ??????# """# #??????????????????????? | | ??????# """# "" #??????????????????????? | | ??????# """# """#??????????????????????? | | ??????# # S"#??????????????????????? | | ??????# """# #??????????????????????? | | ####### """# """"""""" @#??????????????????????? | | ## """# #??????????????????????? | | ## # """"""""" #??????????????????????? | | ## """# #??????????????????????? | | ## """# """"""""" #??????????????????????? | | ## """# #??????????????????????? | | ## # ! #??????????????????????? | | #####+#############g######+#####????????????? | | ?????????? | | ?????????? | | ?????????? | | ?????????? | | ??????????? | | ###+####################+##############??????????? | | #??????????????????????????????????????? | | """ """ "#??????????????????????????????????????? | | """ """ "#??????????????????????????????????????? | | """ """ "#??????????????????????????????????????? | | T#??????????????????????????????????????? | | """ """ "#??????????????????????????????????????? | | """ """ "#??????????????????????????????????????? | | """ """ "#??????????????????????????????????????? | | #??????????????????????????????????????? | | #??????????????????????????????????????? | | #??????????????????????????????????????? | +----------------------------------------------------+ Best States ------------- Heat Dissipation 34 Energy Generation 17 Energy Capacity 300 Matter Stores 300 Matter Capacity 300 Sight Range 16 Terrain Scan Density 10 Evasion (%) 55 Targeting Accuracy 20 Recoil Reduction 2 Offensive Hacking 30 Item Schematics ----------------- None Robot Schematics ------------------ None Fabricated ------------ Nothing Repaired ---------- Nothing Alien Tech Used ----------------- None Achievements -------------- None Challenges ------------ None Game ------ Seed HardenedBattleLog Manual? 0 Play Time 00:20:57 Cumulative 173.0 hours Start 2025.10.04 @ 13:25:36 End 2025.10.04 @ 18:26:17 Sessions 1 Manual Loads 0 Difficulty Rogue Special Mode None Game No. 535 Rogue 534 Adventurer 1 Explorer 0 Win Type - Total 0 Types 0/0/0/0/0/0/0/0/0/0 Lore% 61 Gallery% 57 Achievement% 44 Wizard Run 0 Options --------- Layout 1 ASCII 0 Keyboard 0 Movement Mouse Keybinds 0 Fullscreen 1 Font 24/Smallcaps Map View 50x35 Zoom Use 0% Tactical HUD 0 Map Filters NONE Filters NONE Steam 1 RUN: 6a315dc5-c2f2-4dab-b2d8-dc0a8b97b8fe